[Event "*** MasterClass Titled Tuesday Blitz"]
[Site "Chess.com"]
[Date "2017.10.03"]
[Round "9"]
[White "eldur16"]
[Black "BogdanDeac"]
[Result "1-0"]
[WhiteElo "2502"]
[BlackElo "2610"]
[TimeControl "180+2"]
[EndTime "15:03:49 PDT"]
[Termination "eldur16 won on time"]

1. c4 {[%clk 0:03:01.9]} 1... e5 {[%clk 0:02:55.3]} 2. Nc3 {[%clk 0:03:01.8]}
2... Nf6 {[%clk 0:02:55.8]} 3. g3 {[%clk 0:03:01.8]} 3... Bb4 {[%clk 0:02:55.5]}
4. Bg2 {[%clk 0:03:01.8]} 4... O-O {[%clk 0:02:56.5]} 5. e4 {[%clk 0:03:02.2]}
5... Bxc3 {[%clk 0:02:55.8]} 6. bxc3 {[%clk 0:03:02.6]} 6... Re8 {[%clk
0:02:52.8]} 7. Ne2 {[%clk 0:03:01.3]} 7... c6 {[%clk 0:02:53.4]} 8. O-O {[%clk
0:03:00.8]} 8... d5 {[%clk 0:02:54.1]} 9. exd5 {[%clk 0:03:00.7]} 9... cxd5
{[%clk 0:02:52.3]} 10. d4 {[%clk 0:03:00.9]} 10... exd4 {[%clk 0:02:40.8]} 11.
Nxd4 {[%clk 0:03:01.7]} 11... dxc4 {[%clk 0:02:41.6]} 12. Rb1 {[%clk 0:03:02.6]}
12... Na6 {[%clk 0:02:38.7]} 13. Bf4 {[%clk 0:02:48]} 13... Nc5 {[%clk 0:02:35]}
14. Nb5 {[%clk 0:02:46.4]} 14... Bf5 {[%clk 0:02:17.9]} 15. Nc7 {[%clk
0:02:33.2]} 15... Bxb1 {[%clk 0:02:16.2]} 16. Qxb1 {[%clk 0:02:33.5]} 16... Nd3
{[%clk 0:01:40.1]} 17. Nxe8 {[%clk 0:02:31.5]} 17... Nxe8 {[%clk 0:01:30.9]} 18.
Qxb7 {[%clk 0:02:29]} 18... Rc8 {[%clk 0:01:31.1]} 19. Be3 {[%clk 0:02:17.2]}
19... Nd6 {[%clk 0:01:25.1]} 20. Qd5 {[%clk 0:02:13.4]} 20... a6 {[%clk
0:01:16.5]} 21. a4 {[%clk 0:02:04.7]} 21... Rb8 {[%clk 0:01:16.4]} 22. Bd4
{[%clk 0:01:52.6]} 22... h6 {[%clk 0:01:14.8]} 23. Qc6 {[%clk 0:01:42.8]} 23...
a5 {[%clk 0:01:06.9]} 24. Bh3 {[%clk 0:01:22.1]} 24... Rb2 {[%clk 0:00:57]} 25.
Qd5 {[%clk 0:01:16.7]} 25... Qc7 {[%clk 0:00:47.6]} 26. Bf5 {[%clk 0:00:59.3]}
26... Nxf5 {[%clk 0:00:40.4]} 27. Qxf5 {[%clk 0:00:59.7]} 27... f6 {[%clk
0:00:32]} 28. h4 {[%clk 0:00:55.7]} 28... Rb8 {[%clk 0:00:29.4]} 29. Qd5+ {[%clk
0:00:47.6]} 29... Kh8 {[%clk 0:00:28]} 30. h5 {[%clk 0:00:45]} 30... Rb2 {[%clk
0:00:26.4]} 31. Qf5 {[%clk 0:00:43.3]} 31... Rb8 {[%clk 0:00:26.2]} 32. Qe6
{[%clk 0:00:31.1]} 32... Rb2 {[%clk 0:00:12.4]} 33. Qe8+ {[%clk 0:00:29.5]}
33... Kh7 {[%clk 0:00:11.8]} 34. Qg6+ {[%clk 0:00:30]} 34... Kh8 {[%clk
0:00:12.9]} 35. Qf5 {[%clk 0:00:21]} 35... Qc6 {[%clk 0:00:13.4]} 36. Qxa5
{[%clk 0:00:17]} 36... Ra2 {[%clk 0:00:09]} 37. Qb5 {[%clk 0:00:16.8]} 37... Qf3
{[%clk 0:00:03.6]} 38. Qe8+ {[%clk 0:00:17.6]} 38... Kh7 {[%clk 0:00:04.3]} 39.
Qg6+ {[%clk 0:00:18.6]} 39... Kh8 {[%clk 0:00:05.5]} 40. Rb1 {[%clk 0:00:19.4]}
1-0

[Event "*** MasterClass Titled Tuesday Blitz"]
[Site "Chess.com"]
[Date "2017.10.03"]
[Round "9"]
[White "VojtechPlat"]
[Black "SCIM"]
[Result "0-1"]
[WhiteElo "2658"]
[BlackElo "2457"]
[TimeControl "180+2"]
[EndTime "15:04:00 PDT"]
[Termination "SCIM won by resignation"]

1. e4 {[%clk 0:03:01.9]} 1... e5 {[%clk 0:02:57.2]} 2. Nf3 {[%clk 0:02:57.1]}
2... Nc6 {[%clk 0:02:57.7]} 3. Bb5 {[%clk 0:02:57.6]} 3... g6 {[%clk 0:02:58.2]}
4. c3 {[%clk 0:02:57.4]} 4... d6 {[%clk 0:02:56.6]} 5. d4 {[%clk 0:02:58.2]}
5... Bd7 {[%clk 0:02:56.5]} 6. O-O {[%clk 0:02:57.2]} 6... Bg7 {[%clk
0:02:56.4]} 7. Nbd2 {[%clk 0:02:56.6]} 7... a6 {[%clk 0:02:51.3]} 8. Bxc6 {[%clk
0:02:57.3]} 8... Bxc6 {[%clk 0:02:50.8]} 9. dxe5 {[%clk 0:02:57]} 9... dxe5
{[%clk 0:02:49]} 10. Nc4 {[%clk 0:02:57.7]} 10... Bxe4 {[%clk 0:02:34]} 11.
Ncxe5 {[%clk 0:02:47.2]} 11... Qxd1 {[%clk 0:02:29.7]} 12. Rxd1 {[%clk
0:02:47.5]} 12... Nf6 {[%clk 0:01:42.5]} 13. Bg5 {[%clk 0:02:41.5]} 13... h6
{[%clk 0:01:26.3]} 14. Bxf6 {[%clk 0:02:42.1]} 14... Bxf6 {[%clk 0:01:26.8]} 15.
Re1 {[%clk 0:02:38.7]} 15... Bxf3 {[%clk 0:01:27]} 16. Nxg6+ {[%clk 0:02:30.7]}
16... Kd7 {[%clk 0:01:16.6]} 17. Nxh8 {[%clk 0:02:31.7]} 17... Rg8 {[%clk
0:01:08.9]} 18. Rad1+ {[%clk 0:02:10.1]} 18... Kc6 {[%clk 0:01:07.7]} 19. Rd3
{[%clk 0:02:05.4]} 19... Bxg2 {[%clk 0:00:43.1]} 20. Rg3 {[%clk 0:02:05.8]}
20... Rxg3 {[%clk 0:00:43.4]} 21. hxg3 {[%clk 0:02:06.9]} 21... Bd5 {[%clk
0:00:44.9]} 22. Re8 {[%clk 0:02:07.4]} 22... Bxa2 {[%clk 0:00:42.9]} 23. Rb8
{[%clk 0:01:37.9]} 23... Kd7 {[%clk 0:00:26.6]} 24. Kg2 {[%clk 0:01:22.5]} 24...
b5 {[%clk 0:00:26.1]} 25. Kf3 {[%clk 0:01:21.2]} 25... Be6 {[%clk 0:00:21.3]}
26. Ke4 {[%clk 0:01:20.8]} 26... a5 {[%clk 0:00:19.5]} 27. f4 {[%clk 0:01:18.5]}
27... b4 {[%clk 0:00:18.9]} 28. Kd3 {[%clk 0:01:07.7]} 28... bxc3 {[%clk
0:00:18.2]} 29. bxc3 {[%clk 0:01:08.3]} 29... a4 {[%clk 0:00:19.4]} 30. g4
{[%clk 0:01:09.2]} 30... a3 {[%clk 0:00:18.3]} 31. f5 {[%clk 0:01:09.4]} 31...
Bd5 {[%clk 0:00:18.9]} 32. Nxf7 {[%clk 0:01:01.3]} 32... Bxf7 {[%clk 0:00:17.6]}
33. Ra8 {[%clk 0:01:02.4]} 33... a2 {[%clk 0:00:18.3]} 34. Kc2 {[%clk
0:00:59.4]} 34... Bd5 {[%clk 0:00:17.7]} 35. Ra6 {[%clk 0:00:59.6]} 35... c6
{[%clk 0:00:17.9]} 36. Kb2 {[%clk 0:00:59.5]} 36... Kd6 {[%clk 0:00:19]} 37. Ra8
{[%clk 0:00:58.9]} 37... Ke5 {[%clk 0:00:19.7]} 38. Rf8 {[%clk 0:00:59.2]} 38...
Bc4 {[%clk 0:00:18.4]} 39. Rc8 {[%clk 0:00:59.1]} 39... Bd5 {[%clk 0:00:18.7]}
40. Rf8 {[%clk 0:00:59.1]} 40... Bg5 {[%clk 0:00:19.2]} 41. Rc8 {[%clk
0:00:48.7]} 41... Kf4 {[%clk 0:00:19.6]} 42. Rf8 {[%clk 0:00:39.8]} 42... Kxg4
{[%clk 0:00:20]} 43. f6 {[%clk 0:00:41.1]} 43... Kf5 {[%clk 0:00:20.7]} 44. f7
{[%clk 0:00:42.6]} 44... Kf6 {[%clk 0:00:21.4]} 45. c4 {[%clk 0:00:38.1]} 45...
Bxc4 {[%clk 0:00:20.2]} 46. Rb8 {[%clk 0:00:39.2]} 46... Kxf7 {[%clk 0:00:19.7]}
0-1

[Event "*** MasterClass Titled Tuesday Blitz"]
[Site "Chess.com"]
[Date "2017.10.03"]
[Round "9"]
[White "evgenysharapov"]
[Black "lukas_111111"]
[Result "0-1"]
[WhiteElo "2271"]
[BlackElo "2382"]
[TimeControl "180+2"]
[EndTime "15:04:01 PDT"]
[Termination "lukas_111111 won by resignation"]

1. e4 {[%clk 0:03:01.9]} 1... e6 {[%clk 0:03:00.4]} 2. d4 {[%clk 0:03:02.2]}
2... d5 {[%clk 0:03:01.5]} 3. Nc3 {[%clk 0:03:02.8]} 3... Bb4 {[%clk 0:03:01.5]}
4. e5 {[%clk 0:03:03.2]} 4... Ne7 {[%clk 0:03:02.5]} 5. a3 {[%clk 0:03:02.9]}
5... Bxc3+ {[%clk 0:03:01.3]} 6. bxc3 {[%clk 0:03:03.9]} 6... c5 {[%clk
0:03:03]} 7. Nf3 {[%clk 0:03:04.8]} 7... Bd7 {[%clk 0:03:01.9]} 8. a4 {[%clk
0:03:05.1]} 8... Qc7 {[%clk 0:02:51.1]} 9. Be2 {[%clk 0:03:01.2]} 9... Nbc6
{[%clk 0:02:50.4]} 10. O-O {[%clk 0:03:01]} 10... O-O {[%clk 0:02:49.4]} 11. Ba3
{[%clk 0:02:59.7]} 11... b6 {[%clk 0:02:47.2]} 12. dxc5 {[%clk 0:02:56.1]} 12...
Rfe8 {[%clk 0:02:05.6]} 13. cxb6 {[%clk 0:02:54.7]} 13... axb6 {[%clk
0:02:06.5]} 14. Bd6 {[%clk 0:02:54.8]} 14... Qb7 {[%clk 0:02:06.6]} 15. Bd3
{[%clk 0:02:53.6]} 15... Ng6 {[%clk 0:02:05.3]} 16. Qb1 {[%clk 0:02:34.6]} 16...
Na5 {[%clk 0:01:57.7]} 17. Qb4 {[%clk 0:02:31.6]} 17... Nc6 {[%clk 0:01:55.2]}
18. Qb2 {[%clk 0:02:30.8]} 18... Na5 {[%clk 0:01:32.8]} 19. Rfb1 {[%clk
0:02:30]} 19... Nc4 {[%clk 0:01:33.1]} 20. Qb4 {[%clk 0:02:22.6]} 20... Nf4
{[%clk 0:01:30.2]} 21. Bxc4 {[%clk 0:02:10.1]} 21... dxc4 {[%clk 0:01:28.4]} 22.
Qxc4 {[%clk 0:02:06]} 22... Nh3+ {[%clk 0:00:41.8]} 23. Kf1 {[%clk 0:02:06.3]}
23... Rec8 {[%clk 0:00:37.9]} 24. Qd3 {[%clk 0:01:20]} 24... Nf4 {[%clk
0:00:33.9]} 25. Qe3 {[%clk 0:01:12.8]} 25... Nd5 {[%clk 0:00:34.1]} 26. Qd2
{[%clk 0:01:02.5]} 26... Nxc3 {[%clk 0:00:33.7]} 27. Rb3 {[%clk 0:00:54.1]}
27... Qa6+ {[%clk 0:00:29.9]} 28. Qd3 {[%clk 0:00:52.2]} 28... Bb5 {[%clk
0:00:21.6]} 29. Rxb5 {[%clk 0:00:44.7]} 29... Nxb5 {[%clk 0:00:22.1]} 30. Bb4
{[%clk 0:00:32.9]} 30... Nc3 {[%clk 0:00:20.3]} 31. Qxa6 {[%clk 0:00:29.5]}
31... Rxa6 {[%clk 0:00:20.9]} 32. a5 {[%clk 0:00:20.4]} 32... bxa5 {[%clk
0:00:20.7]} 33. Rxa5 {[%clk 0:00:20.6]} 33... Rxa5 {[%clk 0:00:21]} 34. Bxa5
{[%clk 0:00:21.6]} 34... Nd5 {[%clk 0:00:21.9]} 35. Nd4 {[%clk 0:00:21.6]} 35...
Rc4 {[%clk 0:00:22.1]} 36. Nf3 {[%clk 0:00:20]} 36... Rxc2 {[%clk 0:00:22.6]}
37. Bd2 {[%clk 0:00:20.8]} 37... h6 {[%clk 0:00:23.2]} 38. g3 {[%clk 0:00:21.5]}
38... Kh7 {[%clk 0:00:24.1]} 39. Ke2 {[%clk 0:00:22.6]} 39... Ra2 {[%clk
0:00:23.8]} 40. Kd3 {[%clk 0:00:23.2]} 40... Ra3+ {[%clk 0:00:23.3]} 41. Ke4
{[%clk 0:00:23.4]} 41... Nc3+ {[%clk 0:00:23.3]} 42. Kd3 {[%clk 0:00:21.3]}
42... Nb1+ {[%clk 0:00:20.2]} 43. Ke4 {[%clk 0:00:22.3]} 43... Rxf3 {[%clk
0:00:20.4]} 0-1

[Event "*** MasterClass Titled Tuesday Blitz"]
[Site "Chess.com"]
[Date "2017.10.03"]
[Round "9"]
[White "ArnaudovP"]
[Black "Konavets"]
[Result "0-1"]
[WhiteElo "2496"]
[BlackElo "2790"]
[TimeControl "180+2"]
[EndTime "15:04:04 PDT"]
[Termination "Konavets won by resignation"]

1. Nf3 {[%clk 0:03:01.9]} 1... b6 {[%clk 0:02:59.2]} 2. e4 {[%clk 0:02:57.8]}
2... Bb7 {[%clk 0:02:54.4]} 3. Nc3 {[%clk 0:02:59]} 3... e6 {[%clk 0:02:55.8]}
4. d4 {[%clk 0:02:57.3]} 4... Bb4 {[%clk 0:02:53.3]} 5. Bd3 {[%clk 0:02:57.5]}
5... Nf6 {[%clk 0:02:54.6]} 6. e5 {[%clk 0:02:57.9]} 6... Ne4 {[%clk 0:02:55.8]}
7. O-O {[%clk 0:02:55.3]} 7... Nxc3 {[%clk 0:02:44.7]} 8. bxc3 {[%clk
0:02:55.7]} 8... Bxc3 {[%clk 0:02:46.6]} 9. Rb1 {[%clk 0:02:56.6]} 9... Nc6
{[%clk 0:02:48.1]} 10. Be4 {[%clk 0:02:50.4]} 10... d5 {[%clk 0:02:45.2]} 11.
exd6 {[%clk 0:02:49.2]} 11... Qxd6 {[%clk 0:02:46]} 12. Qd3 {[%clk 0:02:36.1]}
12... Bb4 {[%clk 0:02:32.2]} 13. Qb5 {[%clk 0:02:21.3]} 13... a5 {[%clk
0:01:53.4]} 14. Ne5 {[%clk 0:02:17.4]} 14... O-O {[%clk 0:01:52.8]} 15. Bxc6
{[%clk 0:02:15.2]} 15... Ba6 {[%clk 0:01:53.1]} 16. Qa4 {[%clk 0:02:11.4]} 16...
Bxf1 {[%clk 0:01:53.1]} 17. Bxa8 {[%clk 0:02:09.2]} 17... Rxa8 {[%clk
0:00:55.4]} 18. Kxf1 {[%clk 0:02:04.1]} 18... Qxd4 {[%clk 0:00:56.7]} 19. Nd3
{[%clk 0:02:03.1]} 19... Qg4 {[%clk 0:00:39.3]} 20. Bd2 {[%clk 0:01:43.1]} 20...
Rf8 {[%clk 0:00:10.1]} 21. Bxb4 {[%clk 0:01:43]} 21... c5 {[%clk 0:00:11.2]} 22.
a3 {[%clk 0:01:40.4]} 22... axb4 {[%clk 0:00:11.2]} 23. axb4 {[%clk 0:01:41.4]}
23... h5 {[%clk 0:00:12.5]} 24. Qc6 {[%clk 0:01:40.3]} 24... Qc4 {[%clk
0:00:10.7]} 25. Rc1 {[%clk 0:01:38.4]} 25... Rd8 {[%clk 0:00:11.1]} 26. Qf3
{[%clk 0:01:13.2]} 26... cxb4 {[%clk 0:00:11.8]} 27. Qe2 {[%clk 0:01:13.6]}
27... b3 {[%clk 0:00:12.3]} 28. Ne1 {[%clk 0:01:07.1]} 28... b2 {[%clk
0:00:12.1]} 29. Rb1 {[%clk 0:00:32.1]} 29... Qa2 {[%clk 0:00:13.2]} 30. Rxb2
{[%clk 0:00:30.4]} 30... Qxb2 {[%clk 0:00:15.1]} 31. Qxh5 {[%clk 0:00:28.9]}
31... Qd4 {[%clk 0:00:16.1]} 32. h3 {[%clk 0:00:25.3]} 32... Qc4+ {[%clk
0:00:16.2]} 33. Kg1 {[%clk 0:00:24.6]} 33... Rd2 {[%clk 0:00:17]} 34. Nf3 {[%clk
0:00:20.8]} 34... Rd1+ {[%clk 0:00:17.3]} 35. Kh2 {[%clk 0:00:20.6]} 35... Qf4+
{[%clk 0:00:18.4]} 36. g3 {[%clk 0:00:21.8]} 36... Qf5 {[%clk 0:00:19.7]} 37.
Qxf5 {[%clk 0:00:18.8]} 37... exf5 {[%clk 0:00:21.6]} 38. Kg2 {[%clk 0:00:19.8]}
38... g6 {[%clk 0:00:22.6]} 39. g4 {[%clk 0:00:20.8]} 39... fxg4 {[%clk
0:00:21.8]} 40. hxg4 {[%clk 0:00:21.7]} 40... Kg7 {[%clk 0:00:23.7]} 41. Kg3
{[%clk 0:00:22.7]} 41... Kf6 {[%clk 0:00:25]} 42. Kf4 {[%clk 0:00:24]} 42... Ke6
{[%clk 0:00:25.6]} 43. g5 {[%clk 0:00:24.6]} 43... Kd5 {[%clk 0:00:25.9]} 44.
Ke3 {[%clk 0:00:24.6]} 44... Ra1 {[%clk 0:00:25.4]} 45. Kd3 {[%clk 0:00:25.3]}
45... Ra3+ {[%clk 0:00:25.8]} 46. c3 {[%clk 0:00:24.9]} 46... b5 {[%clk
0:00:27.2]} 47. Nd4 {[%clk 0:00:25.4]} 47... b4 {[%clk 0:00:27.3]} 48. Nb5
{[%clk 0:00:25.1]} 48... Ra5 {[%clk 0:00:27.8]} 49. c4+ {[%clk 0:00:22.1]} 49...
Kc5 {[%clk 0:00:27.8]} 50. Nc7 {[%clk 0:00:20.3]} 50... Ra3+ {[%clk 0:00:28.8]}
51. Ke4 {[%clk 0:00:21.5]} 51... Kxc4 {[%clk 0:00:30.5]} 0-1

[Event "*** MasterClass Titled Tuesday Blitz"]
[Site "Chess.com"]
[Date "2017.10.03"]
[Round "9"]
[White "Dhaydon19"]
[Black "Angry_Serb"]
[Result "0-1"]
[WhiteElo "2454"]
[BlackElo "2403"]
[TimeControl "180+2"]
[EndTime "15:04:08 PDT"]
[Termination "Angry_Serb won on time"]

1. e4 {[%clk 0:03:01.9]} 1... e5 {[%clk 0:02:57.4]} 2. Nf3 {[%clk 0:03:02.8]}
2... d6 {[%clk 0:02:59]} 3. Bc4 {[%clk 0:03:03.4]} 3... Be7 {[%clk 0:02:55.3]}
4. O-O {[%clk 0:03:03.3]} 4... Nf6 {[%clk 0:02:56.9]} 5. Nc3 {[%clk 0:03:03.8]}
5... O-O {[%clk 0:02:57.9]} 6. h3 {[%clk 0:03:04.5]} 6... c6 {[%clk 0:02:55.6]}
7. d4 {[%clk 0:03:04.6]} 7... exd4 {[%clk 0:02:42.5]} 8. Qxd4 {[%clk 0:03:04]}
8... Nbd7 {[%clk 0:02:39]} 9. a4 {[%clk 0:03:02.8]} 9... a5 {[%clk 0:02:33.4]}
10. Bf4 {[%clk 0:03:02.1]} 10... Qc7 {[%clk 0:01:52.9]} 11. Rfd1 {[%clk
0:03:00.6]} 11... Ne5 {[%clk 0:01:48.7]} 12. Nxe5 {[%clk 0:02:58.6]} 12... dxe5
{[%clk 0:01:50.6]} 13. Bxe5 {[%clk 0:02:58.6]} 13... Qd8 {[%clk 0:01:39.7]} 14.
Qe3 {[%clk 0:02:55.3]} 14... Nd7 {[%clk 0:01:33.1]} 15. Qg3 {[%clk 0:02:48.4]}
15... Bf6 {[%clk 0:01:32.1]} 16. Bc7 {[%clk 0:02:31.5]} 16... Qe8 {[%clk
0:01:24.5]} 17. Bd6 {[%clk 0:02:28.2]} 17... Be5 {[%clk 0:01:20.1]} 18. Bxe5
{[%clk 0:02:23.8]} 18... Nxe5 {[%clk 0:01:21.3]} 19. Bb3 {[%clk 0:02:21.3]}
19... Qe7 {[%clk 0:01:16.6]} 20. f4 {[%clk 0:02:14.9]} 20... Qc5+ {[%clk
0:01:12.1]} 21. Kh2 {[%clk 0:02:14.4]} 21... Nc4 {[%clk 0:01:12.4]} 22. Bxc4
{[%clk 0:02:09.5]} 22... Qxc4 {[%clk 0:01:14.3]} 23. f5 {[%clk 0:02:04]} 23...
b5 {[%clk 0:01:05.3]} 24. axb5 {[%clk 0:02:02]} 24... cxb5 {[%clk 0:01:06.1]}
25. Nd5 {[%clk 0:01:56.5]} 25... Qxc2 {[%clk 0:00:52.5]} 26. f6 {[%clk
0:01:35.8]} 26... g6 {[%clk 0:00:52]} 27. Qf4 {[%clk 0:01:34.6]} 27... Kh8
{[%clk 0:00:44.4]} 28. Qh6 {[%clk 0:01:33.7]} 28... Rg8 {[%clk 0:00:45]} 29. Ne7
{[%clk 0:01:32.4]} 29... Be6 {[%clk 0:00:45.5]} 30. Nxg8 {[%clk 0:01:32.3]}
30... Rxg8 {[%clk 0:00:47.4]} 31. Rd8 {[%clk 0:01:32.4]} 31... Qc7+ {[%clk
0:00:48.4]} 32. e5 {[%clk 0:01:16.6]} 32... Qxd8 {[%clk 0:00:46.2]} 33. Rf1
{[%clk 0:01:14.4]} 33... Qd4 {[%clk 0:00:40.2]} 34. Qg5 {[%clk 0:01:12.7]} 34...
Bd5 {[%clk 0:00:29.2]} 35. Rf4 {[%clk 0:01:01.6]} 35... Qd2 {[%clk 0:00:29.3]}
36. e6 {[%clk 0:01:01.4]} 36... Bxe6 {[%clk 0:00:24.9]} 37. Qh6 {[%clk
0:00:53.4]} 37... g5 {[%clk 0:00:20.8]} 38. Rh4 {[%clk 0:00:53]} 38... Qd3
{[%clk 0:00:14.4]} 39. Rh5 {[%clk 0:00:46.2]} 39... Qg6 {[%clk 0:00:15.5]} 40.
Qxg6 {[%clk 0:00:45.6]} 40... Rxg6 {[%clk 0:00:17.4]} 41. h4 {[%clk 0:00:46.5]}
41... gxh4 {[%clk 0:00:15.8]} 42. Rxh4 {[%clk 0:00:47.3]} 42... Rxf6 {[%clk
0:00:16.9]} 43. Rf4 {[%clk 0:00:48.4]} 43... Rxf4 {[%clk 0:00:17.6]} 0-1

[Event "*** MasterClass Titled Tuesday Blitz"]
[Site "Chess.com"]
[Date "2017.10.03"]
[Round "9"]
[White "Induwara_IM"]
[Black "XeresLt"]
[Result "1-0"]
[WhiteElo "2454"]
[BlackElo "2275"]
[TimeControl "180+2"]
[EndTime "15:04:26 PDT"]
[Termination "Induwara_IM won by resignation"]

1. d4 {[%clk 0:02:57.5]} 1... Nf6 {[%clk 0:03:00.4]} 2. c4 {[%clk 0:02:58.4]}
2... g6 {[%clk 0:03:01.8]} 3. Nc3 {[%clk 0:02:59]} 3... Bg7 {[%clk 0:03:03.7]}
4. e4 {[%clk 0:02:59.7]} 4... O-O {[%clk 0:03:05.6]} 5. Be2 {[%clk 0:02:58.9]}
5... d6 {[%clk 0:03:06.9]} 6. Bg5 {[%clk 0:02:59.7]} 6... c5 {[%clk 0:03:07.2]}
7. d5 {[%clk 0:02:59.6]} 7... h6 {[%clk 0:03:07.7]} 8. Be3 {[%clk 0:02:59.6]}
8... a6 {[%clk 0:03:09]} 9. Qd2 {[%clk 0:02:59.6]} 9... Kh7 {[%clk 0:03:09.2]}
10. a4 {[%clk 0:02:57.7]} 10... Re8 {[%clk 0:03:10.3]} 11. h3 {[%clk 0:02:55.8]}
11... e6 {[%clk 0:03:11.6]} 12. Nf3 {[%clk 0:02:55.8]} 12... exd5 {[%clk
0:03:12.4]} 13. exd5 {[%clk 0:02:57]} 13... Ne4 {[%clk 0:03:02.7]} 14. Nxe4
{[%clk 0:02:57.3]} 14... Rxe4 {[%clk 0:03:03.5]} 15. O-O {[%clk 0:02:55.7]}
15... Nd7 {[%clk 0:02:55.8]} 16. Bd3 {[%clk 0:02:55.5]} 16... Re8 {[%clk
0:02:56.6]} 17. Rfe1 {[%clk 0:02:52.5]} 17... Ne5 {[%clk 0:02:24.3]} 18. Nxe5
{[%clk 0:02:51]} 18... Rxe5 {[%clk 0:02:22.3]} 19. Bf4 {[%clk 0:02:50.9]} 19...
Rxe1+ {[%clk 0:02:22.8]} 20. Rxe1 {[%clk 0:02:52.8]} 20... b6 {[%clk 0:02:11.2]}
21. Qe2 {[%clk 0:02:38.9]} 21... Qf6 {[%clk 0:02:04.8]} 22. Bg3 {[%clk 0:02:33]}
22... Bd7 {[%clk 0:02:05.3]} 23. b3 {[%clk 0:02:30.4]} 23... Re8 {[%clk
0:02:05.2]} 24. Qd1 {[%clk 0:02:31]} 24... Rxe1+ {[%clk 0:01:24.5]} 25. Qxe1
{[%clk 0:02:32.9]} 25... Kg8 {[%clk 0:01:23]} 26. Qe3 {[%clk 0:02:23.6]} 26...
a5 {[%clk 0:01:19.7]} 27. Bf4 {[%clk 0:02:23.8]} 27... g5 {[%clk 0:01:13.9]} 28.
Bg3 {[%clk 0:02:24.9]} 28... Kf8 {[%clk 0:01:15.1]} 29. Kh2 {[%clk 0:02:24.1]}
29... Qe7 {[%clk 0:01:15.4]} 30. Qf3 {[%clk 0:02:21.6]} 30... Be5 {[%clk
0:01:12.9]} 31. Bf5 {[%clk 0:01:57.6]} 31... Bxg3+ {[%clk 0:00:51.6]} 32. fxg3
{[%clk 0:01:59.5]} 32... Bxf5 {[%clk 0:00:37.1]} 33. Qxf5 {[%clk 0:02:01.4]}
33... Kg7 {[%clk 0:00:36.9]} 34. Qc8 {[%clk 0:01:48.6]} 34... h5 {[%clk
0:00:36.8]} 35. Qf5 {[%clk 0:01:41.4]} 35... h4 {[%clk 0:00:30.1]} 36. Qg4
{[%clk 0:01:31.3]} 36... Qe5 {[%clk 0:00:27.1]} 37. Qf3 {[%clk 0:01:28.8]} 37...
Kg6 {[%clk 0:00:23.6]} 38. Qg4 {[%clk 0:01:29.4]} 38... f5 {[%clk 0:00:24]} 39.
Qf3 {[%clk 0:01:29.7]} 39... Kh6 {[%clk 0:00:19.5]} 40. Qf2 {[%clk 0:01:27.5]}
40... Kh5 {[%clk 0:00:12.7]} 41. Qf3+ {[%clk 0:01:23]} 41... Kh6 {[%clk
0:00:13.2]} 42. Qf2 {[%clk 0:01:23.7]} 42... Kh5 {[%clk 0:00:14.1]} 43. Qf3+
{[%clk 0:01:24.5]} 43... Kg6 {[%clk 0:00:15.4]} 44. Qd3 {[%clk 0:01:25.1]} 44...
Kg7 {[%clk 0:00:14.5]} 45. Qf3 {[%clk 0:01:19.7]} 45... Kg6 {[%clk 0:00:15.9]}
46. Qd3 {[%clk 0:01:20.6]} 46... Qe4 {[%clk 0:00:17.3]} 47. Qxe4 {[%clk
0:00:53.2]} 47... fxe4 {[%clk 0:00:18.2]} 48. gxh4 {[%clk 0:00:53.7]} 48... e3
{[%clk 0:00:16.3]} 49. Kg3 {[%clk 0:00:47.7]} 49... gxh4+ {[%clk 0:00:13.7]} 50.
Kf3 {[%clk 0:00:48.6]} 50... Kf5 {[%clk 0:00:14.1]} 51. Kxe3 {[%clk 0:00:49.8]}
51... Ke5 {[%clk 0:00:15.7]} 52. Kf3 {[%clk 0:00:50.4]} 52... Kd4 {[%clk
0:00:17.2]} 53. g4 {[%clk 0:00:51.2]} 53... hxg3 {[%clk 0:00:16.8]} 54. h4
{[%clk 0:00:52.4]} 54... Kc3 {[%clk 0:00:18.6]} 55. h5 {[%clk 0:00:53.4]} 55...
Kxb3 {[%clk 0:00:20.5]} 56. h6 {[%clk 0:00:54.8]} 56... Kxa4 {[%clk 0:00:22.1]}
57. h7 {[%clk 0:00:56]} 57... Kb3 {[%clk 0:00:23.9]} 58. h8=Q {[%clk 0:00:56.7]}
58... Kxc4 {[%clk 0:00:25]} 59. Qb8 {[%clk 0:00:55.1]} 59... b5 {[%clk
0:00:25.8]} 60. Qxd6 {[%clk 0:00:55.7]} 60... a4 {[%clk 0:00:27.7]} 61. Qe6
{[%clk 0:00:52.8]} 61... Kc3 {[%clk 0:00:28.4]} 62. d6 {[%clk 0:00:53.9]} 62...
a3 {[%clk 0:00:30.3]} 63. d7 {[%clk 0:00:54.7]} 63... a2 {[%clk 0:00:31.2]} 64.
Qxa2 {[%clk 0:00:55.4]} 1-0